bitfinex/quotes_BTCUSD_20240810
["timestamp","ask_amount","ask_price","bid_price","bid_amount"]
[1723282946984,0.2652241,61164.0,61163.0,0.0029141]
[1723282947324,0.2652241,61164.0,61163.0,0.0647141]
[1723282947325,0.4487181,61164.0,61163.0,0.0647141]
[1723282947697,0.4487181,61164.0,61163.0,0.07485116]
[1723282947878,0.4487181,61164.0,61163.0,0.0029141]
[1723282948078,0.5307181,61164.0,61163.0,0.01305116]
[1723282948277,0.84557336,61164.0,61163.0,0.0029141]
[1723282948501,0.85802702,61164.0,61163.0,0.0029141]
[1723282948704,0.86857336,61164.0,61163.0,0.0029141]
[1723282949021,0.86757336,61164.0,61163.0,0.0029141]
[1723282949223,0.87457336,61164.0,61163.0,0.0029141]
[1723282949423,0.88102702,61164.0,61163.0,0.0019141]
[1723282949651,0.89502828,61164.0,61163.0,0.0019141]
[1723282950086,0.89802828,61164.0,61163.0,0.0029141]
[1723282950294,0.99802828,61164.0,61163.0,0.0029141]
[1723282950426,1.16217798,61164.0,61163.0,0.0019141]
[1723282950603,0.99502828,61164.0,61163.0,0.0019141]
[1723282950818,0.99802828,61164.0,61163.0,0.0029141]
[1723282951017,0.98557462,61164.0,61163.0,0.0029141]
[1723282951227,0.98257462,61164.0,61163.0,0.0019141]
[1723282951422,1.06832105,61164.0,61163.0,0.0019141]
[1723282951626,1.06432105,61164.0,61163.0,0.0019141]
[1723282952686,1.23381505,61164.0,61163.0,0.0029141]
[1723282952876,1.16052228,61164.0,61163.0,0.0029141]
[1723282953077,1.25224598,61164.0,61163.0,0.0019141]
[1723282953271,2.43162228,61164.0,61163.0,0.0019141]
[1723282953573,2.53534598,61164.0,61163.0,0.0029141]
[1723282953989,2.37185198,61164.0,61163.0,0.0029141]
[1723282954188,2.44217112,61164.0,61163.0,0.0029141]
[1723282954391,2.53534598,61164.0,61163.0,0.0029141]
[1723282954593,2.37185198,61164.0,61163.0,0.0029141]
[1723282955015,2.53534598,61164.0,61163.0,0.0029141]
[1723282955245,2.37185198,61164.0,61163.0,0.0029141]
[1723282955689,2.43762228,61164.0,61163.0,0.0029141]
[1723282955883,2.27412828,61164.0,61163.0,0.0029141]
[1723282956260,2.27453074,61164.0,61163.0,0.0029141]
[1723282957520,2.56083506,61164.0,61163.0,0.0029141]
[1723282957707,2.39668536,61164.0,61163.0,0.0029141]
[1723282958367,2.43802474,61164.0,61163.0,0.0029141]
[1723282958539,2.56032892,61164.0,61163.0,0.0029141]
[1723282958741,2.43805211,61164.0,61163.0,0.0029141]
[1723282959305,2.42362102,61164.0,61163.0,0.0029141]
[1723282959516,2.58970289,61164.0,61163.0,0.0029141]
[1723282960260,2.60215655,61164.0,61163.0,0.0029141]
[1723282960464,2.27451285,61164.0,61163.0,0.0029141]
[1723282960671,2.27351285,61164.0,61163.0,0.0029141]
[1723282961102,2.43700685,61164.0,61163.0,0.0029141]
[1723282962175,1.15990685,61164.0,61163.0,0.0029141]
[1723282962378,1.32405655,61164.0,61163.0,0.0029141]
[1723282962620,1.55270006,61164.0,61163.0,0.0029141]
[1723282962814,1.38855036,61164.0,61163.0,0.0029141]
[1723282963340,1.24175331,61164.0,61163.0,0.0029141]
[1723282964467,1.39544633,61164.0,61163.0,0.0029141]
[1723282964667,1.40789999,61164.0,61163.0,0.0029141]
[1723282964867,1.38602872,61164.0,61163.0,0.0029141]
[1723282965859,1.4392356,61164.0,61163.0,0.0029141]
[1723282966061,1.53513689,61164.0,61163.0,0.0029141]
[1723282966259,1.43890737,61164.0,61163.0,0.0029141]
[1723282966821,1.53513689,61164.0,61163.0,0.0029141]
[1723282967025,1.60240205,61164.0,61163.0,0.0029141]
[1723282967391,1.61485571,61164.0,61163.0,0.0029141]
[1723282967598,1.60240205,61164.0,61163.0,0.0029141]
[1723282968255,2.87950205,61164.0,61163.0,0.0029141]
[1723282968394,3.51950205,61164.0,61163.0,0.0029141]
[1723282968986,3.27416159,61164.0,61163.0,0.0029141]
[1723282969190,3.27416159,61164.0,61163.0,0.0019141]
[1723282969389,3.26616159,61164.0,61163.0,0.0009141]
[1723282969588,3.23416159,61164.0,61163.0,0.0029141]
[1723282969831,3.41010925,61164.0,61163.0,0.0019141]
[1723282970036,3.40410925,61164.0,61163.0,0.0019141]
[1723282970251,3.37865559,61164.0,61163.0,0.0019141]
[1723282970440,3.40894266,61164.0,61163.0,0.0029141]
[1723282970608,3.40294266,61164.0,61163.0,0.0019141]
[1723282970810,3.33584409,61164.0,61163.0,0.0019141]
[1723282971021,3.40894185,61164.0,61163.0,0.0029141]
[1723282971657,3.40994185,61164.0,61163.0,0.0029141]
[1723282971887,3.49034185,61164.0,61163.0,0.0029141]
[1723282974125,0.68520466,61151.0,61150.0,0.0009152]
[1723282974296,1.01254858,61151.0,61150.0,0.0009152]
[1723282974471,1.12661425,61151.0,61150.0,0.01166032]
[1723282974663,1.14961425,61151.0,61150.0,0.0009152]
[1723282976002,1.14961425,61151.0,61150.0,0.0019152]
[1723282976003,1.15961425,61151.0,61150.0,0.0019152]
[1723282976145,0.76834766,61150.0,61149.0,0.5708152]
[1723282976349,1.31460671,61150.0,61149.0,0.58157548]
[1723282976596,1.31460671,61150.0,61149.0,0.5708152]
[1723282977004,1.06922825,61150.0,61149.0,0.5708152]
[1723282977238,1.14962825,61150.0,61149.0,0.58157548]
[1723282977435,1.15662825,61150.0,61149.0,0.58257548]
[1723282977660,1.28807586,61150.0,61149.0,0.58357548]
[1723282977870,1.42998121,61150.0,61149.0,0.58357548]
[1723282978028,1.44350399,61150.0,61149.0,0.58357548]
[1723282978807,1.42998121,61150.0,61149.0,0.58357548]
[1723282979157,1.4435853,61150.0,61149.0,0.58357548]
[1723282979355,1.44356607,61150.0,61149.0,0.58357548]
[1723282979496,1.40273769,61150.0,61149.0,0.58357548]
[1723282979846,1.56626969,61150.0,61149.0,0.58449068]
[1723282980084,2.67983769,61150.0,61149.0,0.58449068]
[1723282980231,0.42143066,61128.0,61127.0,0.0009152]
[1723282980766,0.60524558,61128.0,61127.0,0.1409152]
[1723282980983,0.72824558,61128.0,61127.0,0.0633152]
[1723282981173,0.89183658,61128.0,61127.0,0.0633152]
[1723282981790,0.87938292,61128.0,61127.0,0.0633152]
[1723282982199,1.69265947,61128.0,61127.0,0.0009152]
[1723282982412,1.52959148,61128.0,61127.0,0.0009152]
[1723282982611,1.61542836,61128.0,61127.0,0.0009152]
[1723282982940,1.80356621,61128.0,61127.0,0.0009152]
[1723282983220,1.71664355,61128.0,61127.0,0.0019152]
[1723282983435,1.86817819,61128.0,61127.0,0.0019152]
[1723282983631,1.69513353,61128.0,61127.0,0.0009152]
[1723282983775,1.61692252,61128.0,61127.0,0.0009152]
[1723282983982,1.5573936,61128.0,61127.0,0.0019152]
[1723282984182,1.56984726,61128.0,61127.0,0.0019152]
[1723282984386,1.55706847,61128.0,61127.0,0.0019152]
[1723282984923,1.63156154,61128.0,61127.0,0.0019152]
[1723282985344,1.5827099,61128.0,61127.0,0.0019152]
[1723282985554,1.63153824,61128.0,61127.0,0.0019152]
[1723282985681,1.63153824,61128.0,61125.0,0.0009152]
[1723282985682,0.60503966,61126.0,61125.0,0.0009152]
[1723282985888,1.13865058,61126.0,61125.0,0.0009152]
[1723282986154,1.1512908,61126.0,61125.0,0.0009152]
[1723282986319,1.87865058,61126.0,61125.0,0.0009152]
[1723282986496,1.92745493,61126.0,61125.0,0.0009152]
[1723282987046,1.89165058,61126.0,61125.0,0.0009152]
[1723282987334,0.93561646,61126.0,61125.0,0.0663152]
[1723282987539,0.88185458,61126.0,61125.0,0.0663152]
[1723282988496,1.04545058,61126.0,61125.0,0.0009152]
[1723282988714,0.88185458,61126.0,61125.0,0.0009152]
[1723282989232,0.89585458,61126.0,61125.0,0.0009152]
[1723282989433,0.91885458,61126.0,61125.0,0.0763152]
[1723282992055,0.91885458,61126.0,61125.0,0.0009152]
[1723282992275,1.08245058,61126.0,61125.0,0.0009152]
[1723282992470,1.12344755,61126.0,61125.0,0.0009152]
[1723282992679,0.95985155,61126.0,61125.0,0.0009152]
[1723282992934,1.12344755,61126.0,61125.0,0.0009152]
[1723282993097,1.13590121,61126.0,61125.0,0.0009152]
[1723282993322,1.12344755,61126.0,61125.0,0.0009152]
[1723282993537,1.21910121,61126.0,61125.0,0.0009152]
[1723282993802,1.20664755,61126.0,61125.0,0.0009152]
[1723282994005,1.19264755,61126.0,61125.0,0.0009152]
[1723282994416,1.19364755,61126.0,61125.0,0.0009152]
[1723282994616,1.17964755,61126.0,61125.0,0.0009152]
[1723282995896,1.19364755,61126.0,61125.0,0.0009152]
[1723282996095,1.20664755,61126.0,61125.0,0.0019152]
[1723282996717,1.17964755,61126.0,61125.0,0.0009152]
[1723282996915,1.17964755,61126.0,61125.0,0.0019152]
[1723282997140,1.21910121,61126.0,61125.0,0.0019152]
[1723282997318,1.81957601,61126.0,61125.0,0.0019152]
[1723282997534,1.98317201,61126.0,61125.0,0.0019152]
[1723282997779,1.99562567,61126.0,61125.0,0.0019152]
[1723282997981,1.98317201,61126.0,61125.0,0.0019152]
[1723282998463,1.99562567,61126.0,61125.0,0.0019152]
[1723282998672,1.98317201,61126.0,61125.0,0.0019152]
[1723282999207,1.65945058,61126.0,61125.0,0.0673152]
[1723282999508,1.05945058,61126.0,61125.0,0.0673152]
[1723283000065,1.62945058,61126.0,61125.0,0.0673152]
[1723283000391,1.05945058,61126.0,61125.0,0.0673152]
[1723283000595,1.24660028,61126.0,61125.0,0.0673152]
[1723283001018,1.08245058,61126.0,61125.0,0.0673152]
[1723283001222,1.08245058,61126.0,61125.0,0.0019152]
[1723283001427,1.09486538,61126.0,61125.0,0.0019152]
[1723283001619,1.17815316,61126.0,61125.0,0.0019152]
[1723283001905,1.3292955,61126.0,61125.0,0.0019152]
[1723283002201,1.49344499,61126.0,61125.0,0.0019152]
[1723283003190,2.09344499,61126.0,61125.0,0.0019152]
[1723283003395,2.10589865,61126.0,61125.0,0.0019152]
[1723283003594,2.10689865,61126.0,61125.0,0.0019152]
[1723283003806,2.09444499,61126.0,61125.0,0.0019152]
[1723283004025,0.76875666,61116.0,61104.0,0.0009141]
[1723283004226,1.12391792,61116.0,61112.0,0.0634]
[1723283004433,1.13637158,61116.0,61112.0,0.0634]
[1723283004788,1.05557158,61116.0,61112.0,0.0634]
[1723283006440,1.06557158,61116.0,61112.0,0.0634]
[1723283006638,1.07357158,61116.0,61115.0,0.07569697]
[1723283007241,1.20102874,61116.0,61115.0,0.07569697]
[1723283007828,1.21101653,61116.0,61115.0,0.07569697]
[1723283008045,1.08355937,61116.0,61115.0,0.00019697]
[1723283008244,1.07110571,61116.0,61115.0,0.00019697]
[1723283009278,1.08358081,61116.0,61115.0,0.00019697]
[1723283010078,1.09603447,61116.0,61115.0,0.00019697]
[1723283011265,0.90941147,61116.0,61115.0,0.06359697]
[1723283011485,0.88694858,61116.0,61115.0,0.13909697]
[1723283013541,0.90994858,61116.0,61115.0,0.13909697]
[1723283014148,0.90994858,61116.0,61115.0,0.14001217]
[1723283018682,0.88994858,61116.0,61115.0,0.14001217]
[1723283019412,0.87994858,61116.0,61115.0,0.14001217]
[1723283019620,0.88994858,61116.0,61115.0,0.14001217]
[1723283020175,0.89749492,61116.0,61115.0,0.14001217]
[1723283020391,0.90994858,61116.0,61115.0,0.14001217]
[1723283021533,0.89749492,61116.0,61115.0,0.14001217]
[1723283021738,0.90994858,61116.0,61115.0,0.14001217]
[1723283022058,0.88694858,61116.0,61115.0,0.14001217]
[1723283022602,0.93579409,61116.0,61115.0,0.14001217]
[1723283023441,0.96021685,61116.0,61115.0,0.14001217]
[1723283024327,0.94776319,61116.0,61115.0,0.14001217]
[1723283024497,0.92352083,61116.0,61115.0,0.14001217]
[1723283024689,0.93597449,61116.0,61115.0,0.14001217]
[1723283024903,0.96021685,61116.0,61115.0,0.14001217]
[1723283025097,0.87449492,61116.0,61115.0,0.14001217]
[1723283025462,0.9726217,61116.0,61115.0,0.14001217]
[1723283027537,0.87449492,61116.0,61115.0,0.14001217]
[1723283028681,1.00394893,61116.0,61115.0,0.06451217]
[1723283028929,1.222198,61116.0,61115.0,0.06451217]
[1723283029069,1.20974434,61116.0,61115.0,0.06451217]
[1723283029277,1.222198,61116.0,61115.0,0.06451217]
[1723283029476,1.20974434,61116.0,61115.0,0.06451217]
[1723283029676,1.423198,61116.0,61115.0,0.00111217]
[1723283029878,1.49164434,61116.0,61115.0,0.00111217]
[1723283030108,1.504098,61116.0,61115.0,0.00111217]
[1723283030310,1.49164434,61116.0,61115.0,0.00111217]
[1723283030483,1.504098,61116.0,61115.0,0.00111217]
[1723283030836,1.37464399,61116.0,61115.0,0.00111217]
[1723283031034,1.38106404,61116.0,61115.0,0.00111217]
[1723283031255,1.3935177,61116.0,61115.0,0.00111217]
[1723283031539,1.1116177,61116.0,61115.0,0.00111217]
[1723283032729,1.11530187,61116.0,61115.0,0.00111217]
[1723283033322,1.10284821,61116.0,61115.0,0.00111217]
[1723283034430,1.30973432,61116.0,61115.0,0.00111217]
[1723283036081,1.32218798,61116.0,61115.0,0.00111217]
[1723283036260,1.11530187,61116.0,61115.0,0.00111217]
[1723283036455,1.10284821,61116.0,61115.0,0.00111217]
[1723283037059,1.06111792,61116.0,61115.0,0.00111217]
[1723283037244,1.1074744,61116.0,61115.0,0.00111217]
[1723283037445,1.11992806,61116.0,61115.0,0.00111217]
[1723283037644,1.27207325,61116.0,61115.0,0.00111217]
[1723283037846,1.25961959,61116.0,61115.0,0.00111217]
[1723283038076,1.27207325,61116.0,61115.0,0.00111217]
[1723283038455,1.41930333,61116.0,61115.0,0.00111217]
[1723283038874,1.41934137,61116.0,61115.0,0.00111217]
[1723283040220,1.41936439,61116.0,61115.0,0.00111217]
[1723283040440,1.2672192,61116.0,61115.0,0.00111217]
[1723283040591,1.26721805,61116.0,61115.0,0.00111217]
[1723283041201,1.22080166,61116.0,61115.0,0.06121217]
[1723283041403,1.26707414,61116.0,61115.0,0.06121217]
[1723283042218,1.26718108,61116.0,61115.0,0.06121217]
[1723283043017,1.25472742,61116.0,61115.0,0.06121217]
[1723283043227,1.26718108,61116.0,61115.0,0.06121217]
[1723283044246,1.26692915,61116.0,61115.0,0.06121217]
[1723283044801,1.2209086,61116.0,61115.0,0.06121217]
[1723283045045,1.29253793,61116.0,61115.0,0.06121217]
[1723283045556,1.43934542,61116.0,61115.0,0.06121217]
[1723283045711,1.29253793,61116.0,61115.0,0.06121217]
[1723283045907,1.28453793,61116.0,61115.0,0.06121217]
[1723283046111,1.27453793,61116.0,61115.0,0.06121217]
[1723283046463,1.29253793,61116.0,61115.0,0.06121217]
[1723283046709,1.42934542,61116.0,61115.0,0.06121217]
[1723283046900,1.42134542,61116.0,61115.0,0.06121217]
[1723283047078,1.29253793,61116.0,61115.0,0.06121217]
[1723283048632,1.29268085,61116.0,61115.0,0.00111217]
[1723283048983,1.29268085,61116.0,61115.0,0.00034146]
[1723283049570,1.43118721,61116.0,61115.0,0.00034146]
[1723283050422,1.431344,61116.0,61115.0,0.00034146]
[1723283050792,1.29283764,61116.0,61115.0,0.00034146]
[1723283051498,1.29270221,61116.0,61115.0,0.00034146]
[1723283052376,1.24655153,61116.0,61115.0,0.00034146]
[1723283052590,1.29263517,61116.0,61115.0,0.00034146]
[1723283052760,1.29263516,61116.0,61115.0,0.00034146]
[1723283053416,1.43113695,61116.0,61115.0,0.00034146]
[1723283053720,1.41868329,61116.0,61115.0,0.00034146]
[1723283053862,1.3606815,61116.0,61115.0,0.00034146]
[1723283054102,1.45573516,61116.0,61115.0,0.00034146]
[1723283054310,1.4432815,61116.0,61115.0,0.00034146]
[1723283054505,1.47202114,61116.0,61115.0,0.00034146]
[1723283054734,1.63777529,61116.0,61115.0,0.00034146]
[1723283054929,1.63617084,61116.0,61115.0,0.00034146]
[1723283055531,1.61571718,61116.0,61115.0,0.00034146]
[1723283055735,1.74887084,61116.0,61115.0,0.00034146]
[1723283055951,1.74837911,61116.0,61115.0,0.00034146]
[1723283056348,1.72637911,61116.0,61115.0,0.00034146]
[1723283056545,1.74037911,61116.0,61115.0,0.00034146]
[1723283056745,1.57675611,61116.0,61115.0,0.00034146]
[1723283056976,1.57520977,61116.0,61115.0,0.00034146]
[1723283057174,1.57675611,61116.0,61115.0,0.00034146]
[1723283057778,1.59075611,61116.0,61115.0,0.00034146]
[1723283057998,1.50660977,61116.0,61115.0,0.00034146]
[1723283058327,1.48015611,61116.0,61115.0,0.00034146]
[1723283058495,1.49260977,61116.0,61115.0,0.00034146]
[1723283058700,1.50660977,61116.0,61115.0,0.00034146]
[1723283058902,1.49415611,61116.0,61115.0,0.00034146]
[1723283059071,1.6598653,61116.0,61115.0,0.00034146]
[1723283059469,1.82335477,61116.0,61115.0,0.00034146]
[1723283059676,1.80935477,61116.0,61115.0,0.00034146]
[1723283059906,1.76340338,61116.0,61115.0,0.00034146]
[1723283060138,1.65768535,61116.0,61115.0,0.00034146]
[1723283060337,1.64368535,61116.0,61115.0,0.00034146]
[1723283060539,1.73873901,61116.0,61115.0,0.00034146]
[1723283060678,1.75273901,61116.0,61115.0,0.00034146]
[1723283061688,1.75373901,61116.0,61115.0,0.00034146]
[1723283061860,1.76773901,61116.0,61115.0,0.00034146]
[1723283062706,1.73973901,61116.0,61115.0,0.00034146]
[1723283062888,2.32373901,61116.0,61115.0,0.00034146]
[1723283063095,2.42122136,61116.0,61115.0,0.00034146]
[1723283063298,2.40722136,61116.0,61115.0,0.00034146]
[1723283063484,2.42122136,61116.0,61115.0,0.00034146]
[1723283063906,2.40722136,61116.0,61115.0,0.00034146]
[1723283064108,2.39322136,61116.0,61115.0,0.00034146]
[1723283064431,2.40722136,61116.0,61115.0,0.00034146]
[1723283064690,2.42122136,61116.0,61115.0,0.00034146]
[1723283064831,2.40722136,61116.0,61115.0,0.00034146]
[1723283065250,0.76887866,61106.0,61105.0,0.0646]
[1723283065474,1.10164538,61106.0,61105.0,0.0646]
[1723283066885,1.11164538,61106.0,61105.0,0.0646]
[1723283067724,1.09919172,61106.0,61105.0,0.0646]
[1723283068130,1.11964538,61106.0,61105.0,0.0646]
[1723283068300,1.26440278,61106.0,61105.0,0.0646]
[1723283068527,1.25640278,61106.0,61105.0,0.0646]
[1723283068730,1.26625852,61106.0,61105.0,0.0646]
[1723283068938,1.28025852,61106.0,61105.0,0.0646]
[1723283069162,1.27025852,61106.0,61105.0,0.0646]
[1723283069400,1.26725852,61106.0,61105.0,0.0646]
[1723283069611,1.28125852,61106.0,61105.0,0.0646]
[1723283069738,1.12550112,61106.0,61105.0,0.0646]
[1723283069947,1.13950112,61106.0,61105.0,0.0646]
[1723283070530,1.09354932,61106.0,61105.0,0.0646]
[1723283070731,1.12517786,61106.0,61105.0,0.0646]
[1723283070982,1.27532756,61106.0,61105.0,0.0646]
[1723283071214,1.28932758,61106.0,61105.0,0.0646]
[1723283071980,1.30332758,61106.0,61105.0,0.0646]
[1723283073628,1.30333468,61106.0,61105.0,0.0646]
[1723283073906,0.76888766,61105.0,61104.0,0.0009141]
[1723283074037,1.25303428,61105.0,61104.0,0.0009141]
[1723283074581,1.26547989,61105.0,61104.0,0.0009141]
[1723283075080,1.27847989,61105.0,61104.0,0.0009141]
[1723283075281,1.26602623,61105.0,61104.0,0.0009141]
[1723283075683,1.28002623,61105.0,61104.0,0.0009141]
[1723283075896,1.36052623,61105.0,61104.0,0.0009141]
[1723283076448,1.37297989,61105.0,61104.0,0.0009141]
[1723283077003,1.53663189,61105.0,61104.0,0.0009141]
[1723283077142,1.56680428,61105.0,61104.0,0.0009141]
[1723283077368,1.61237194,61105.0,61104.0,0.0009141]
[1723283077576,2.37237194,61105.0,61104.0,0.0009141]
[1723283078196,2.37337194,61105.0,61104.0,0.0009141]
[1723283078443,2.35937194,61105.0,61104.0,0.0009141]
[1723283078645,2.34637194,61105.0,61104.0,0.0009141]
[1723283078972,2.37437194,61105.0,61104.0,0.0009141]
[1723283079154,2.36037194,61105.0,61104.0,0.0009141]
[1723283079382,2.35937194,61105.0,61104.0,0.0009141]
[1723283079571,2.37337194,61105.0,61104.0,0.0009141]
[1723283080580,2.35937194,61105.0,61104.0,0.0009141]
[1723283080810,2.32780428,61105.0,61104.0,0.0009141]
[1723283081099,2.37311238,61105.0,61104.0,0.0009141]
[1723283082646,2.37315642,61105.0,61104.0,0.0009141]
[1723283083124,2.53680842,61105.0,61104.0,1e-07]
[1723283084129,2.49145628,61105.0,61104.0,1e-07]
[1723283084426,2.53676893,61105.0,61104.0,1e-07]
[1723283084694,0.92013,61102.0,61101.0,0.009141]
[1723283084944,2.1855152,61102.0,61101.0,0.009141]
[1723283086100,2.1995152,61102.0,61101.0,0.009141]
[1723283086732,2.1995152,61102.0,61093.0,0.0653]
[1723283086733,0.84952266,61094.0,61093.0,0.0653]
[1723283086967,1.2551909,61094.0,61093.0,0.0653]
[1723283087157,1.32926951,61094.0,61093.0,0.0653]
[1723283087365,0.76904466,61092.0,61091.0,0.0001]
[1723283087561,1.17470726,61092.0,61091.0,0.0001]
[1723283087826,1.1012265,61092.0,61091.0,0.0001]
[1723283088031,1.2653762,61092.0,61091.0,0.0001]
[1723283088182,1.46554274,61092.0,61091.0,0.0001]
[1723283088397,1.51073138,61092.0,61091.0,0.0001]
[1723283089010,1.52473138,61092.0,61091.0,0.0001]
[1723283089211,1.09647066,61089.0,61086.0,0.0653]
[1723283089524,0.26801966,61083.0,61082.0,0.1416141]
[1723283089729,0.89494522,61083.0,61082.0,0.1416141]
[1723283089876,1.18165622,61083.0,61082.0,0.1416141]
[1723283090583,1.18108951,61083.0,61082.0,0.1416141]
[1723283090786,1.25452509,61083.0,61082.0,0.1416141]
[1723283091402,1.18108951,61083.0,61082.0,0.1416141]
[1723283091757,1.19061953,61083.0,61082.0,0.1416141]
[1723283091958,1.20461953,61083.0,61082.0,0.1416141]
[1723283092192,1.1599976,61083.0,61082.0,0.1416141]
[1723283092411,1.1599976,61083.0,61082.0,1e-07]
[1723283092412,1.5263442,61083.0,61082.0,1e-07]
[1723283092604,0.60550866,61076.0,61075.0,2e-07]
[1723283092717,0.81401272,61076.0,61075.0,0.0653002]
[1723283092924,1.15824272,61076.0,61075.0,0.0653002]
[1723283093126,1.30354877,61076.0,61075.0,0.0653002]
[1723283093341,1.13655358,61076.0,61075.0,0.0653002]
[1723283093565,1.25439206,61076.0,61075.0,0.0653002]
[1723283094346,1.2543942,61076.0,61075.0,0.0653002]
[1723283094551,1.2269942,61076.0,61075.0,2e-07]
[1723283094751,1.2269942,61076.0,61071.0,0.0001]
[1723283094752,0.76928766,61072.0,61071.0,0.0001]
[1723283094965,0.9773309,61072.0,61071.0,0.0001]
[1723283095163,0.9773309,61072.0,61071.0,0.0755]
[1723283095164,1.1578309,61072.0,61071.0,0.0755]
[1723283095371,1.0773309,61072.0,61071.0,0.0755]
[1723283095571,1.11360258,61072.0,61071.0,0.1408]
[1723283096598,1.12760258,61072.0,61071.0,0.1408]
[1723283096964,1.15060258,61072.0,61071.0,0.1408]
[1723283097143,1.16460258,61072.0,61071.0,0.1408]
[1723283097478,1.15060258,61072.0,61071.0,0.1408]
[1723283098185,1.16460258,61072.0,61071.0,0.1408]
[1723283100041,1.08410258,61072.0,61071.0,0.1408]
[1723283100240,1.16460258,61072.0,61071.0,0.1408]
[1723283101906,1.16460258,61072.0,61071.0,0.1417152]
[1723283102862,1.15214892,61072.0,61071.0,0.1417152]
[1723283103067,1.16460258,61072.0,61071.0,0.1417152]
[1723283103345,1.15214892,61072.0,61071.0,0.1417152]
[1723283103598,1.16460258,61072.0,61071.0,0.1417152]
[1723283103770,0.90036158,61072.0,61071.0,0.1417152]
[1723283104103,0.94786158,61072.0,61071.0,0.1417152]
[1723283105138,0.93386158,61072.0,61071.0,0.1417152]
[1723283105344,0.97351916,61072.0,61071.0,0.1417152]
[1723283105963,0.95951916,61072.0,61071.0,0.1417152]
[1723283106117,0.97351916,61072.0,61071.0,0.1417152]
[1723283106703,0.081866,61076.0,61073.0,0.1406]
[1723283106854,0.081866,61076.0,61071.0,0.0010152]
[1723283106855,0.163725,61078.0,61077.0,0.1406]
[1723283107054,0.409312,61078.0,61077.0,0.1406]
[1723283107257,0.245587,61078.0,61077.0,0.1406]
[1723283107662,0.081862,61078.0,61077.0,0.1406]
[1723283107868,0.245587,61078.0,61077.0,0.1406]
[1723283108211,0.249587,61078.0,61077.0,0.1406]
[1723283108623,0.004,61078.0,61077.0,0.1406]
[1723283108825,0.004,61078.0,61077.0,0.222463]
[1723283109003,0.081858,61082.0,61079.0,0.1406]
[1723283109201,0.003,61078.0,61077.0,0.081863]
[1723283109527,0.005,61078.0,61077.0,0.081863]
[1723283109946,0.003,61078.0,61077.0,0.1406]
[1723283110376,0.003,61078.0,61077.0,0.38619]
[1723283110576,0.081856,61083.0,61080.0,0.1406]
[1723283110781,0.081856,61083.0,61078.0,0.081861]
[1723283111028,0.1,61085.0,61077.0,0.163727]
[1723283111029,0.181853,61085.0,61077.0,0.172727]
[1723283111210,0.081857,61082.0,61077.0,0.090863]
[1723283111356,0.081857,61082.0,61078.0,0.1406]
[1723283111917,0.081856,61083.0,61081.0,0.1406]
[1723283112182,0.002,61083.0,61082.0,0.081857]
[1723283112430,0.08185,61087.0,61084.0,0.1406]
[1723283112936,0.081851,61086.0,61082.0,0.081857]
[1723283113150,0.01,61095.0,61084.0,0.1406]
[1723283113151,0.081851,61087.0,61084.0,0.1406]
[1723283113405,0.081851,61086.0,61085.0,0.1406]
[1723283115079,0.08185,61088.0,61086.0,0.1406]
[1723283115302,0.163689,61092.0,61089.0,0.0756]
[1723283115552,0.163689,61092.0,61079.0,0.24556746]
[1723283115553,0.081844,61092.0,61090.0,0.065]
[1723283115769,0.081842,61093.0,61087.0,0.081849]
[1723283115995,0.081842,61093.0,61085.0,0.163704]
[1723283115996,0.081842,61093.0,61088.0,0.081848]
[1723283116282,0.01,61103.0,61084.0,0.00527367]
[1723283116519,0.081841,61094.0,61091.0,0.1406]
[1723283116971,0.081841,61094.0,61092.0,0.1406]
[1723283117256,0.081841,61094.0,61083.0,0.163711]
[1723283117257,0.004,61092.0,61091.0,0.386135]
[1723283117472,0.000832,61115.0,61105.0,0.1406]
[1723283117702,0.000832,61115.0,61100.0,0.08184646]
[1723283117703,0.000832,61115.0,61103.0,0.2013]
[1723283117916,0.081816,61113.0,61110.0,0.065]
[1723283118159,0.000832,61115.0,61111.0,0.0756]
[1723283118160,0.081816,61112.0,61111.0,0.0756]
[1723283118387,0.000832,61115.0,61112.0,0.163633]
[1723283118615,0.000832,61115.0,61114.0,0.245442]
[1723283118889,0.000832,61115.0,61114.0,0.386042]
[1723283119117,0.001832,61115.0,61114.0,0.386042]
[1723283119356,0.001832,61115.0,61114.0,0.222414]
[1723283120495,0.000832,61115.0,61114.0,0.391042]
[1723283120752,0.001832,61115.0,61114.0,0.391042]
[1723283120968,0.000832,61115.0,61114.0,0.391042]
[1723283121430,0.000832,61115.0,61114.0,0.395042]
[1723283121683,0.000832,61115.0,61114.0,0.386042]
[1723283122084,0.082644,61115.0,61114.0,0.1476]
[1723283122314,0.57370892,61115.0,61114.0,0.072]
[1723283122513,0.76733392,61115.0,61114.0,0.013]
[1723283122743,0.77033392,61115.0,61114.0,0.013]
[1723283123152,0.77033392,61115.0,61114.0,0.006]
[1723283123298,0.78033392,61115.0,61114.0,0.006]
[1723283123502,0.78133392,61115.0,61114.0,0.006]
[1723283123704,0.245463,61109.0,61108.0,0.1406]
[1723283124232,0.409105,61109.0,61108.0,0.1406]
[1723283124638,0.245463,61109.0,61108.0,0.1406]
[1723283124842,0.081821,61109.0,61108.0,0.1406]
[1723283125272,0.08182,61110.0,61108.0,0.1436]
[1723283125446,0.08182,61110.0,61109.0,0.0758]
[1723283125447,0.081819,61110.0,61109.0,0.0758]
[1723283126851,0.081819,61110.0,61109.0,0.0768]
[1723283127608,0.163632,61113.0,61109.0,0.0778]
[1723283127852,0.081818,61111.0,61109.0,0.0778]
[1723283128353,0.081819,61110.0,61109.0,0.0778]
[1723283128554,0.163634,61112.0,61109.0,0.0768]
[1723283128555,0.245452,61112.0,61109.0,0.0768]
[1723283128753,0.081817,61112.0,61109.0,0.0768]
[1723283128957,0.081817,61112.0,61109.0,0.0758]
[1723283129316,0.081816,61113.0,61109.0,0.0758]
[1723283129523,0.081816,61113.0,61110.0,0.0621]
[1723283129745,0.081816,61113.0,61111.0,0.0758]
[1723283130156,0.081816,61112.0,61111.0,0.0758]
[1723283132308,0.245449,61112.0,61111.0,0.0758]
[1723283133604,0.081816,61112.0,61111.0,0.0758]
[1723283134179,0.245449,61112.0,61111.0,0.0758]
[1723283136040,0.081816,61112.0,61111.0,0.0758]
[1723283136804,0.246449,61112.0,61111.0,0.0758]
[1723283137222,0.24621492,61112.0,61105.0,0.0621]
[1723283137473,0.081831,61101.0,61100.0,0.0621]
[1723283137823,0.081835,61099.0,61097.0,0.0758]
[1723283138022,0.163662,61102.0,61097.0,0.0758]
[1723283138445,0.081835,61099.0,61097.0,0.0758]
[1723283138652,0.163655,61104.0,61096.0,0.0621]
[1723283138653,0.163666,61100.0,61096.0,0.0621]
[1723283138854,0.081837,61097.0,61093.0,0.0758]
[1723283139395,0.163666,61100.0,61093.0,0.0758]